Workbook

Sheet RACE SETUP
B2: Pursuit Race Timing Sheet - RACE SETUP
B4: Race Start Time for Ref PY | C4: 12:00:00 | D4: HH:MM
B6: Race Duration for Ref PY | C6: 100 | D6: minutes
B8: Slowest Class Competing (Ref PY) | C8: Gull
B10: Reference PY | C10: =VLOOKUP(C8,'PY DATA'!F3:G97,2,FALSE) -> 1388
B12: Finish | C12: =C4+(C6/60)/24 -> 13:40:00 | D12: (= Start time + Race duration)
B14: RACE will be
B15: ="Based on:"&" "&C8&" (PY "&C10&") racing for "&C6&" minutes" -> Based on: Gull (PY 1388) racing for 100 minutes
B17: INSTRUCTIONS
B18: 1 - Update the list of classes and PYs in the sheet "PY DATA"
B19: 2 - Enter Race Start Time for the Reference (slowest) class
B20: 3 - Enter the Duration of race for the Reference Class
B21: 4 - Click in the Slowest Class cell and then open the drop-down list - Choose the Reference class
B22: 5 - Check the DISPLAY NOTICE sheet (edit year if necessary) and then Print
B24: [Changes to the list of classes shown on the DISPLAY NOTICE are made in the PY DATA sheet.]

Sheet DISPLAY NOTICE
B1: PURSUIT RACE - START TIME OFFSETS FOR EACH CLASS 2025
B2: ='RACE SETUP'!B15 -> Based on: Gull (PY 1388) racing for 100 minutes
B4: Scheduled Start Time | C4: START TIME OFFSET | D4: Yardstick range | F4: Classes starting
D5: from | E5: to
B7: =CALCULATIONS!B28 -> 12:00:00 | C7: 0 | D7: =CALCULATIONS!F28 -> 1382 | E7: =CALCULATIONS!G28 -> 1394 | F7: =CALCULATIONS!I28 -> Gull
B8: =CALCULATIONS!B29 -> 12:01:00 | C8: =C7+1 -> 1 | D8: =CALCULATIONS!F29 -> 1368 | E8: =CALCULATIONS!G29 -> 1381 | F8: =CALCULATIONS!I29 -> 
B9: =CALCULATIONS!B30 -> 12:02:00 | C9: =C8+1 -> 2 | D9: =CALCULATIONS!F30 -> 1354 | E9: =CALCULATIONS!G30 -> 1367 | F9: =CALCULATIONS!I30 -> Topper
B10: =CALCULATIONS!B31 -> 12:03:00 | C10: 3 | D10: =CALCULATIONS!F31 -> 1340 | E10: =CALCULATIONS!G31 -> 1353 | F10: =CALCULATIONS!I31 -> 
B11: =CALCULATIONS!B32 -> 12:04:00 | C11: 4 | D11: =CALCULATIONS!F32 -> 1326 | E11: =CALCULATIONS!G32 -> 1339 | F11: =CALCULATIONS!I32 -> Pico
B12: =CALCULATIONS!B33 -> 12:05:00 | C12: 5 | D12: =CALCULATIONS!F33 -> 1312 | E12: =CALCULATIONS!G33 -> 1325 | F12: =CALCULATIONS!I33 -> 
B13: =CALCULATIONS!B34 -> 12:06:00 | C13: 6 | D13: =CALCULATIONS!F34 -> 1298 | E13: =CALCULATIONS!G34 -> 1311 | F13: =CALCULATIONS!I34 -> Quba S
B14: =CALCULATIONS!B35 -> 12:07:00 | C14: 7 | D14: =CALCULATIONS!F35 -> 1284 | E14: =CALCULATIONS!G35 -> 1297 | F14: =CALCULATIONS!I35 -> 
B15: =CALCULATIONS!B36 -> 12:08:00 | C15: 8 | D15: =CALCULATIONS!F36 -> 1271 | E15: =CALCULATIONS!G36 -> 1283 | F15: =CALCULATIONS!I36 -> Feva S
B16: =CALCULATIONS!B37 -> 12:09:00 | C16: 9 | D16: =CALCULATIONS!F37 -> 1257 | E16: =CALCULATIONS!G37 -> 1270 | F16: =CALCULATIONS!I37 -> Topaz Uno
B17: =CALCULATIONS!B38 -> 12:10:00 | C17: 10 | D17: =CALCULATIONS!F38 -> 1243 | E17: =CALCULATIONS!G38 -> 1256 | F17: =CALCULATIONS!I38 -> 
B18: =CALCULATIONS!B39 -> 12:11:00 | C18: 11 | D18: =CALCULATIONS!F39 -> 1229 | E18: =CALCULATIONS!G39 -> 1242 | F18: =CALCULATIONS!I39 -> 
B19: =CALCULATIONS!B40 -> 12:12:00 | C19: 12 | D19: =CALCULATIONS!F40 -> 1215 | E19: =CALCULATIONS!G40 -> 1228 | F19: =CALCULATIONS!I40 -> 
B20: =CALCULATIONS!B41 -> 12:13:00 | C20: 13 | D20: =CALCULATIONS!F41 -> 1201 | E20: =CALCULATIONS!G41 -> 1214 | F20: =CALCULATIONS!I41 -> 4.7
B21: =CALCULATIONS!B42 -> 12:14:00 | C21: 14 | D21: =CALCULATIONS!F42 -> 1187 | E21: =CALCULATIONS!G42 -> 1200 | F21: =CALCULATIONS!I42 -> Wanderer, Miracle, Lightning
B22: =CALCULATIONS!B43 -> 12:15:00 | C22: 15 | D22: =CALCULATIONS!F43 -> 1173 | E22: =CALCULATIONS!G43 -> 1186 | F22: =CALCULATIONS!I43 -> 
B23: =CALCULATIONS!B44 -> 12:16:00 | C23: 16 | D23: =CALCULATIONS!F44 -> 1159 | E23: =CALCULATIONS!G44 -> 1172 | F23: =CALCULATIONS!I44 -> Enterprise, Graduate (orig)
B24: =CALCULATIONS!B45 -> 12:17:00 | C24: 17 | D24: =CALCULATIONS!F45 -> 1146 | E24: =CALCULATIONS!G45 -> 1158 | F24: =CALCULATIONS!I45 -> Radial, Europe
B25: =CALCULATIONS!B46 -> 12:18:00 | C25: 18 | D25: =CALCULATIONS!F46 -> 1132 | E25: =CALCULATIONS!G46 -> 1145 | F25: =CALCULATIONS!I46 -> Vision
B26: =CALCULATIONS!B47 -> 12:19:00 | C26: 19 | D26: =CALCULATIONS!F47 -> 1118 | E26: =CALCULATIONS!G47 -> 1131 | F26: =CALCULATIONS!I47 -> Graduate (new), Streaker
B27: =CALCULATIONS!B48 -> 12:20:00 | C27: 20 | D27: =CALCULATIONS!F48 -> 1104 | E27: =CALCULATIONS!G48 -> 1117 | F27: =CALCULATIONS!I48 -> Wayfarer, Vareo
B28: =CALCULATIONS!B49 -> 12:21:00 | C28: 21 | D28: =CALCULATIONS!F49 -> 1090 | E28: =CALCULATIONS!G49 -> 1103 | F28: =CALCULATIONS!I49 -> Laser
B29: =CALCULATIONS!B50 -> 12:22:00 | C29: 22 | D29: =CALCULATIONS!F50 -> 1076 | E29: =CALCULATIONS!G50 -> 1089 | F29: =CALCULATIONS!I50 -> 
B30: =CALCULATIONS!B51 -> 12:23:00 | C30: 23 | D30: =CALCULATIONS!F51 -> 1062 | E30: =CALCULATIONS!G51 -> 1075 | F30: =CALCULATIONS!I51 -> Vago XD
B31: =CALCULATIONS!B52 -> 12:24:00 | C31: 24 | D31: =CALCULATIONS!F52 -> 1048 | E31: =CALCULATIONS!G52 -> 1061 | F31: =CALCULATIONS!I52 -> Blaze Fire
B32: =CALCULATIONS!B53 -> 12:25:00 | C32: 25 | D32: =CALCULATIONS!F53 -> 1035 | E32: =CALCULATIONS!G53 -> 1047 | F32: =CALCULATIONS!I53 -> 
B33: =CALCULATIONS!B54 -> 12:26:00 | C33: 26 | D33: =CALCULATIONS!F54 -> 1021 | E33: =CALCULATIONS!G54 -> 1034 | F33: =CALCULATIONS!I54 -> Blaze
B34: =CALCULATIONS!B55 -> 12:27:00 | C34: 27 | D34: =CALCULATIONS!F55 -> 1007 | E34: =CALCULATIONS!G55 -> 1020 | F34: =CALCULATIONS!I55 -> 
B35: =CALCULATIONS!B56 -> 12:28:00 | C35: 28 | D35: =CALCULATIONS!F56 -> 993 | E35: =CALCULATIONS!G56 -> 1006 | F35: =CALCULATIONS!I56 -> 
B36: =CALCULATIONS!B57 -> 12:29:00 | C36: 29 | D36: =CALCULATIONS!F57 -> 979 | E36: =CALCULATIONS!G57 -> 992 | F36: =CALCULATIONS!I57 -> 
B37: =CALCULATIONS!B58 -> 12:30:00 | C37: 30 | D37: =CALCULATIONS!F58 -> 965 | E37: =CALCULATIONS!G58 -> 978 | F37: =CALCULATIONS!I58 -> Contender
B38: =CALCULATIONS!B59 -> 12:31:00 | C38: 31 | D38: =CALCULATIONS!F59 -> 951 | E38: =CALCULATIONS!G59 -> 964 | F38: =CALCULATIONS!I59 -> 4000
B39: =CALCULATIONS!B60 -> 12:32:00 | C39: 32 | D39: =CALCULATIONS!F60 -> 937 | E39: =CALCULATIONS!G60 -> 950 | F39: =CALCULATIONS!I60 -> Osprey, RS 400
B40: =CALCULATIONS!B61 -> 12:33:00 | C40: 33 | D40: =CALCULATIONS!F61 -> 924 | E40: =CALCULATIONS!G61 -> 936 | F40: =CALCULATIONS!I61 -> 
B41: =CALCULATIONS!B62 -> 12:34:00 | C41: 34 | D41: =CALCULATIONS!F62 -> 910 | E41: =CALCULATIONS!G62 -> 923 | F41: =CALCULATIONS!I62 -> RS 600
B42: =CALCULATIONS!B63 -> 12:35:00 | C42: 35 | D42: =CALCULATIONS!F63 -> 896 | E42: =CALCULATIONS!G63 -> 909 | F42: =CALCULATIONS!I63 -> 
B43: =CALCULATIONS!B64 -> 12:36:00 | C43: 36 | D43: =CALCULATIONS!F64 -> 882 | E43: =CALCULATIONS!G64 -> 895 | F43: =CALCULATIONS!I64 -> 
B44: =CALCULATIONS!B65 -> 12:37:00 | C44: =C43+1 -> 37 | D44: =CALCULATIONS!F65 -> 868 | E44: =CALCULATIONS!G65 -> 881 | F44: =CALCULATIONS!I65 -> 
B45: =CALCULATIONS!B66 -> 12:38:00 | C45: 38 | D45: =CALCULATIONS!F66 -> 854 | E45: =CALCULATIONS!G66 -> 867 | F45: =CALCULATIONS!I66 -> 
B46: =CALCULATIONS!B67 -> 12:39:00 | C46: 39 | D46: =CALCULATIONS!F67 -> 840 | E46: =CALCULATIONS!G67 -> 853 | F46: =CALCULATIONS!I67 -> 
B47: =CALCULATIONS!B68 -> 12:40:00 | C47: 40 | D47: =CALCULATIONS!F68 -> 826 | E47: =CALCULATIONS!G68 -> 839 | F47: =CALCULATIONS!I68 -> 
B48: =CALCULATIONS!B69 -> 12:41:00 | C48: 41 | D48: =CALCULATIONS!F69 -> 812 | E48: =CALCULATIONS!G69 -> 825 | F48: =CALCULATIONS!I69 -> 
B49: =CALCULATIONS!B70 -> 12:42:00 | C49: 42 | D49: =CALCULATIONS!F70 -> 799 | E49: =CALCULATIONS!G70 -> 811 | F49: =CALCULATIONS!I70 -> 
B50: =CALCULATIONS!B71 -> 12:43:00 | C50: 43 | D50: =CALCULATIONS!F71 -> 785 | E50: =CALCULATIONS!G71 -> 798 | F50: =CALCULATIONS!I71 -> 
B51: =CALCULATIONS!B72 -> 12:44:00 | C51: 44 | D51: =CALCULATIONS!F72 -> 771 | E51: =CALCULATIONS!G72 -> 784 | F51: =CALCULATIONS!I72 -> 
B53: RACE FINISHES AT - | F53: =B7+Race/24/60 -> 13:40:00

Sheet CALCULATIONS
B2: Start | C2: ='RACE SETUP'!C4 -> 12:00:00
B3: Finish | C3: ='RACE SETUP'!C12 -> 13:40:00 | E3: 0.0006944444444
B4: Race | C4: ='RACE SETUP'!C6 -> 100 | D4: mins | G4: 1480
B5: RefPY | C5: ='RACE SETUP'!C10 -> 1388
B7: Start time | C7: Race length | D7: upper time | E7: upper PY | F7: min PY | G7: max PY | H7: GROUP
B9: =B10-1/24/60 -> 11:41:00 | C9: =C10+1 -> 119 | D9: =C9+0.5 -> 119.5 | E9: =D9/Race*RefPY -> 1658.66 | F9: =G10+1 -> 1645 | G9: =INT(E9) -> 1658
B10: 11:42:00 | C10: 118 | D10: 118.5 | E10: 1644.78 | F10: 1631 | G10: =INT(E10) -> 1644
B11: 11:43:00 | C11: 117 | D11: 117.5 | E11: 1630.9 | F11: 1618 | G11: 1630
B12: 11:44:00 | C12: 116 | D12: 116.5 | E12: 1617.02 | F12: 1604 | G12: 1617
B13: 11:45:00 | C13: 115 | D13: 115.5 | E13: 1603.14 | F13: 1590 | G13: 1603
B14: 11:46:00 | C14: 114 | D14: 114.5 | E14: 1589.26 | F14: 1576 | G14: 1589
B15: 11:47:00 | C15: 113 | D15: 113.5 | E15: 1575.38 | F15: 1562 | G15: 1575
B16: =B17-1/24/60 -> 11:48:00 | C16: =C17+1 -> 112 | D16: =C16+0.5 -> 112.5 | E16: =D16/Race*RefPY -> 1561.5 | F16: =G17+1 -> 1548 | G16: =INT(E16) -> 1561
B17: 11:49:00 | C17: 111 | D17: 111.5 | E17: 1547.62 | F17: 1534 | G17: 1547
B18: 11:50:00 | C18: 110 | D18: 110.5 | E18: 1533.74 | F18: 1520 | G18: 1533
B19: 11:51:00 | C19: 109 | D19: 109.5 | E19: 1519.86 | F19: 1506 | G19: 1519
B20: 11:52:00 | C20: 108 | D20: 108.5 | E20: 1505.98 | F20: 1493 | G20: 1505
B21: 11:53:00 | C21: 107 | D21: 107.5 | E21: 1492.1 | F21: 1479 | G21: 1492
B22: 11:54:00 | C22: 106 | D22: 106.5 | E22: 1478.22 | F22: 1465 | G22: 1478
B23: 11:55:00 | C23: 105 | D23: 105.5 | E23: 1464.34 | F23: 1451 | G23: 1464
B24: 11:56:00 | C24: 104 | D24: 104.5 | E24: 1450.46 | F24: =G25+1 -> 1437 | G24: =INT(E24) -> 1450
B25: 11:57:00 | C25: 103 | D25: 103.5 | E25: 1436.58 | F25: =G26+1 -> 1423 | G25: =INT(E25) -> 1436
B26: 11:58:00 | C26: 102 | D26: 102.5 | E26: 1422.7 | F26: =G27+1 -> 1409 | G26: =INT(E26) -> 1422
B27: 11:59:00 | C27: 101 | D27: =C27+0.5 -> 101.5 | E27: =D27/Race*RefPY -> 1408.82 | F27: =G28+1 -> 1395 | G27: =INT(E27) -> 1408
B28: =Start -> 12:00:00 | C28: =Race -> 100 | D28: =C28+0.5 -> 100.5 | E28: =D28/Race*RefPY -> 1394.94 | F28: =G29+1 -> 1382 | G28: =INT(E28) -> 1394 | H28: 1 | I28: =IF(ISERROR((VLOOKUP(H28,'PY DATA'!$Q$3:$S$100,3,FALSE)))," ",VLOOKUP(H28,'PY DATA'!$Q$3:$S$100,3,FALSE)) -> Gull
B29: =B28+1/24/60 -> 12:01:00 | C29: =C28-1 -> 99 | D29: =C29+0.5 -> 99.5 | E29: 1381.06 | F29: =G30+1 -> 1368 | G29: =INT(E29) -> 1381 | H29: =H28+1 -> 2 | I29: =IF(ISERROR((VLOOKUP(H29,'PY DATA'!$Q$3:$S$100,3,FALSE)))," ",VLOOKUP(H29,'PY DATA'!$Q$3:$S$100,3,FALSE)) -> 
B30: =B29+1/24/60 -> 12:02:00 | C30: =C29-1 -> 98 | D30: 98.5 | E30: 1367.18 | F30: 1354 | G30: 1367 | H30: =H29+1 -> 3 | I30: =IF(ISERROR((VLOOKUP(H30,'PY DATA'!$Q$3:$S$100,3,FALSE)))," ",VLOOKUP(H30,'PY DATA'!$Q$3:$S$100,3,FALSE)) -> Topper
B31: 12:03:00 | C31: 97 | D31: 97.5 | E31: 1353.3 | F31: 1340 | G31: 1353 | H31: 4 | I31: =IF(ISERROR((VLOOKUP(H31,'PY DATA'!$Q$3:$S$100,3,FALSE)))," ",VLOOKUP(H31,'PY DATA'!$Q$3:$S$100,3,FALSE)) -> 
B32: 12:04:00 | C32: 96 | D32: 96.5 | E32: 1339.42 | F32: 1326 | G32: 1339 | H32: 5 | I32: =IF(ISERROR((VLOOKUP(H32,'PY DATA'!$Q$3:$S$100,3,FALSE)))," ",VLOOKUP(H32,'PY DATA'!$Q$3:$S$100,3,FALSE)) -> Pico
B33: 12:05:00 | C33: 95 | D33: 95.5 | E33: 1325.54 | F33: 1312 | G33: 1325 | H33: 6 | I33: =IF(ISERROR((VLOOKUP(H33,'PY DATA'!$Q$3:$S$100,3,FALSE)))," ",VLOOKUP(H33,'PY DATA'!$Q$3:$S$100,3,FALSE)) -> 
B34: 12:06:00 | C34: 94 | D34: 94.5 | E34: 1311.66 | F34: 1298 | G34: 1311 | H34: 7 | I34: =IF(ISERROR((VLOOKUP(H34,'PY DATA'!$Q$3:$S$100,3,FALSE)))," ",VLOOKUP(H34,'PY DATA'!$Q$3:$S$100,3,FALSE)) -> Quba S
B35: 12:07:00 | C35: 93 | D35: 93.5 | E35: 1297.78 | F35: 1284 | G35: 1297 | H35: 8 | I35: =IF(ISERROR((VLOOKUP(H35,'PY DATA'!$Q$3:$S$100,3,FALSE)))," ",VLOOKUP(H35,'PY DATA'!$Q$3:$S$100,3,FALSE)) -> 
B36: 12:08:00 | C36: 92 | D36: 92.5 | E36: 1283.9 | F36: 1271 | G36: 1283 | H36: 9 | I36: =IF(ISERROR((VLOOKUP(H36,'PY DATA'!$Q$3:$S$100,3,FALSE)))," ",VLOOKUP(H36,'PY DATA'!$Q$3:$S$100,3,FALSE)) -> Feva S
B37: 12:09:00 | C37: 91 | D37: 91.5 | E37: 1270.02 | F37: 1257 | G37: 1270 | H37: 10 | I37: =IF(ISERROR((VLOOKUP(H37,'PY DATA'!$Q$3:$S$100,3,FALSE)))," ",VLOOKUP(H37,'PY DATA'!$Q$3:$S$100,3,FALSE)) -> Topaz Uno
B38: 12:10:00 | C38: 90 | D38: 90.5 | E38: 1256.14 | F38: 1243 | G38: 1256 | H38: 11 | I38: =IF(ISERROR((VLOOKUP(H38,'PY DATA'!$Q$3:$S$100,3,FALSE)))," ",VLOOKUP(H38,'PY DATA'!$Q$3:$S$100,3,FALSE)) -> 
B39: 12:11:00 | C39: 89 | D39: 89.5 | E39: 1242.26 | F39: 1229 | G39: 1242 | H39: 12 | I39: =IF(ISERROR((VLOOKUP(H39,'PY DATA'!$Q$3:$S$100,3,FALSE)))," ",VLOOKUP(H39,'PY DATA'!$Q$3:$S$100,3,FALSE)) -> 
B40: 12:12:00 | C40: 88 | D40: 88.5 | E40: 1228.38 | F40: 1215 | G40: 1228 | H40: 13 | I40: =IF(ISERROR((VLOOKUP(H40,'PY DATA'!$Q$3:$S$100,3,FALSE)))," ",VLOOKUP(H40,'PY DATA'!$Q$3:$S$100,3,FALSE)) -> 
B41: 12:13:00 | C41: 87 | D41: 87.5 | E41: 1214.5 | F41: 1201 | G41: 1214 | H41: 14 | I41: =IF(ISERROR((VLOOKUP(H41,'PY DATA'!$Q$3:$S$100,3,FALSE)))," ",VLOOKUP(H41,'PY DATA'!$Q$3:$S$100,3,FALSE)) -> 4.7
B42: 12:14:00 | C42: 86 | D42: 86.5 | E42: 1200.62 | F42: 1187 | G42: 1200 | H42: 15 | I42: =IF(ISERROR((VLOOKUP(H42,'PY DATA'!$Q$3:$S$100,3,FALSE)))," ",VLOOKUP(H42,'PY DATA'!$Q$3:$S$100,3,FALSE)) -> Wanderer, Miracle, Lightning
B43: 12:15:00 | C43: 85 | D43: 85.5 | E43: 1186.74 | F43: 1173 | G43: 1186 | H43: 16 | I43: =IF(ISERROR((VLOOKUP(H43,'PY DATA'!$Q$3:$S$100,3,FALSE)))," ",VLOOKUP(H43,'PY DATA'!$Q$3:$S$100,3,FALSE)) -> 
B44: 12:16:00 | C44: 84 | D44: 84.5 | E44: 1172.86 | F44: 1159 | G44: 1172 | H44: 17 | I44: =IF(ISERROR((VLOOKUP(H44,'PY DATA'!$Q$3:$S$100,3,FALSE)))," ",VLOOKUP(H44,'PY DATA'!$Q$3:$S$100,3,FALSE)) -> Enterprise, Graduate (orig)
B45: 12:17:00 | C45: 83 | D45: 83.5 | E45: 1158.98 | F45: 1146 | G45: 1158 | H45: 18 | I45: =IF(ISERROR((VLOOKUP(H45,'PY DATA'!$Q$3:$S$100,3,FALSE)))," ",VLOOKUP(H45,'PY DATA'!$Q$3:$S$100,3,FALSE)) -> Radial, Europe
B46: 12:18:00 | C46: 82 | D46: 82.5 | E46: 1145.1 | F46: 1132 | G46: 1145 | H46: 19 | I46: =IF(ISERROR((VLOOKUP(H46,'PY DATA'!$Q$3:$S$100,3,FALSE)))," ",VLOOKUP(H46,'PY DATA'!$Q$3:$S$100,3,FALSE)) -> Vision
B47: 12:19:00 | C47: 81 | D47: 81.5 | E47: 1131.22 | F47: 1118 | G47: 1131 | H47: 20 | I47: =IF(ISERROR((VLOOKUP(H47,'PY DATA'!$Q$3:$S$100,3,FALSE)))," ",VLOOKUP(H47,'PY DATA'!$Q$3:$S$100,3,FALSE)) -> Graduate (new), Streaker
B48: =B47+1/24/60 -> 12:20:00 | C48: =C47-1 -> 80 | D48: 80.5 | E48: 1117.34 | F48: =G49+1 -> 1104 | G48: =INT(E48) -> 1117 | H48: 21 | I48: =IF(ISERROR((VLOOKUP(H48,'PY DATA'!$Q$3:$S$100,3,FALSE)))," ",VLOOKUP(H48,'PY DATA'!$Q$3:$S$100,3,FALSE)) -> Wayfarer, Vareo
B49: 12:21:00 | C49: 79 | D49: 79.5 | E49: 1103.46 | F49: 1090 | G49: 1103 | H49: 22 | I49: =IF(ISERROR((VLOOKUP(H49,'PY DATA'!$Q$3:$S$100,3,FALSE)))," ",VLOOKUP(H49,'PY DATA'!$Q$3:$S$100,3,FALSE)) -> Laser
B50: 12:22:00 | C50: 78 | D50: 78.5 | E50: 1089.58 | F50: 1076 | G50: 1089 | H50: 23 | I50: =IF(ISERROR((VLOOKUP(H50,'PY DATA'!$Q$3:$S$100,3,FALSE)))," ",VLOOKUP(H50,'PY DATA'!$Q$3:$S$100,3,FALSE)) -> 
B51: 12:23:00 | C51: 77 | D51: 77.5 | E51: 1075.7 | F51: 1062 | G51: 1075 | H51: 24 | I51: =IF(ISERROR((VLOOKUP(H51,'PY DATA'!$Q$3:$S$100,3,FALSE)))," ",VLOOKUP(H51,'PY DATA'!$Q$3:$S$100,3,FALSE)) -> Vago XD
B52: 12:24:00 | C52: 76 | D52: 76.5 | E52: 1061.82 | F52: 1048 | G52: 1061 | H52: 25 | I52: =IF(ISERROR((VLOOKUP(H52,'PY DATA'!$Q$3:$S$100,3,FALSE)))," ",VLOOKUP(H52,'PY DATA'!$Q$3:$S$100,3,FALSE)) -> Blaze Fire
B53: 12:25:00 | C53: 75 | D53: 75.5 | E53: 1047.94 | F53: 1035 | G53: 1047 | H53: 26 | I53: =IF(ISERROR((VLOOKUP(H53,'PY DATA'!$Q$3:$S$100,3,FALSE)))," ",VLOOKUP(H53,'PY DATA'!$Q$3:$S$100,3,FALSE)) -> 
B54: 12:26:00 | C54: 74 | D54: 74.5 | E54: 1034.06 | F54: 1021 | G54: 1034 | H54: 27 | I54: =IF(ISERROR((VLOOKUP(H54,'PY DATA'!$Q$3:$S$100,3,FALSE)))," ",VLOOKUP(H54,'PY DATA'!$Q$3:$S$100,3,FALSE)) -> Blaze
B55: 12:27:00 | C55: 73 | D55: 73.5 | E55: 1020.18 | F55: 1007 | G55: 1020 | H55: 28 | I55: =IF(ISERROR((VLOOKUP(H55,'PY DATA'!$Q$3:$S$100,3,FALSE)))," ",VLOOKUP(H55,'PY DATA'!$Q$3:$S$100,3,FALSE)) -> 
B56: 12:28:00 | C56: 72 | D56: 72.5 | E56: 1006.3 | F56: =G57+1 -> 993 | G56: =INT(E56) -> 1006 | H56: 29 | I56: =IF(ISERROR((VLOOKUP(H56,'PY DATA'!$Q$3:$S$100,3,FALSE)))," ",VLOOKUP(H56,'PY DATA'!$Q$3:$S$100,3,FALSE)) -> 
B57: =B56+1/24/60 -> 12:29:00 | C57: =C56-1 -> 71 | D57: 71.5 | E57: 992.42 | F57: 979 | G57: =INT(E57) -> 992 | H57: 30 | I57: =IF(ISERROR((VLOOKUP(H57,'PY DATA'!$Q$3:$S$100,3,FALSE)))," ",VLOOKUP(H57,'PY DATA'!$Q$3:$S$100,3,FALSE)) -> 
B58: =B57+1/24/60 -> 12:30:00 | C58: =C57-1 -> 70 | D58: 70.5 | E58: 978.54 | F58: 965 | G58: =INT(E58) -> 978 | H58: 31 | I58: =IF(ISERROR((VLOOKUP(H58,'PY DATA'!$Q$3:$S$100,3,FALSE)))," ",VLOOKUP(H58,'PY DATA'!$Q$3:$S$100,3,FALSE)) -> Contender
B59: =B58+1/24/60 -> 12:31:00 | C59: =C58-1 -> 69 | D59: 69.5 | E59: 964.66 | F59: 951 | G59: =INT(E59) -> 964 | H59: 32 | I59: =IF(ISERROR((VLOOKUP(H59,'PY DATA'!$Q$3:$S$100,3,FALSE)))," ",VLOOKUP(H59,'PY DATA'!$Q$3:$S$100,3,FALSE)) -> 4000
B60: =B59+1/24/60 -> 12:32:00 | C60: =C59-1 -> 68 | D60: 68.5 | E60: 950.78 | F60: =G61+1 -> 937 | G60: =INT(E60) -> 950 | H60: 33 | I60: =IF(ISERROR((VLOOKUP(H60,'PY DATA'!$Q$3:$S$100,3,FALSE)))," ",VLOOKUP(H60,'PY DATA'!$Q$3:$S$100,3,FALSE)) -> Osprey, RS 400
B61: =B60+1/24/60 -> 12:33:00 | C61: =C60-1 -> 67 | D61: 67.5 | E61: 936.9 | F61: =G62+1 -> 924 | G61: =INT(E61) -> 936 | H61: =H60+1 -> 34 | I61: =IF(ISERROR((VLOOKUP(H61,'PY DATA'!$Q$3:$S$100,3,FALSE)))," ",VLOOKUP(H61,'PY DATA'!$Q$3:$S$100,3,FALSE)) -> 
B62: 12:34:00 | C62: 66 | D62: 66.5 | E62: 923.02 | F62: 910 | G62: 923 | H62: 35 | I62: =IF(ISERROR((VLOOKUP(H62,'PY DATA'!$Q$3:$S$100,3,FALSE)))," ",VLOOKUP(H62,'PY DATA'!$Q$3:$S$100,3,FALSE)) -> RS 600
B63: 12:35:00 | C63: 65 | D63: 65.5 | E63: 909.14 | F63: 896 | G63: 909 | H63: 36 | I63: =IF(ISERROR((VLOOKUP(H63,'PY DATA'!$Q$3:$S$100,3,FALSE)))," ",VLOOKUP(H63,'PY DATA'!$Q$3:$S$100,3,FALSE)) -> 
B64: 12:36:00 | C64: 64 | D64: 64.5 | E64: 895.26 | F64: 882 | G64: 895 | H64: 37 | I64: =IF(ISERROR((VLOOKUP(H64,'PY DATA'!$Q$3:$S$100,3,FALSE)))," ",VLOOKUP(H64,'PY DATA'!$Q$3:$S$100,3,FALSE)) -> 
B65: 12:37:00 | C65: 63 | D65: 63.5 | E65: 881.38 | F65: 868 | G65: 881 | H65: 38 | I65: =IF(ISERROR((VLOOKUP(H65,'PY DATA'!$Q$3:$S$100,3,FALSE)))," ",VLOOKUP(H65,'PY DATA'!$Q$3:$S$100,3,FALSE)) -> 
B66: 12:38:00 | C66: 62 | D66: 62.5 | E66: 867.5 | F66: 854 | G66: 867 | H66: 39 | I66: =IF(ISERROR((VLOOKUP(H66,'PY DATA'!$Q$3:$S$100,3,FALSE)))," ",VLOOKUP(H66,'PY DATA'!$Q$3:$S$100,3,FALSE)) -> 
B67: 12:39:00 | C67: 61 | D67: 61.5 | E67: 853.62 | F67: 840 | G67: 853 | H67: 40 | I67: =IF(ISERROR((VLOOKUP(H67,'PY DATA'!$Q$3:$S$100,3,FALSE)))," ",VLOOKUP(H67,'PY DATA'!$Q$3:$S$100,3,FALSE)) -> 
B68: 12:40:00 | C68: 60 | D68: 60.5 | E68: 839.74 | F68: 826 | G68: 839 | H68: 41 | I68: =IF(ISERROR((VLOOKUP(H68,'PY DATA'!$Q$3:$S$100,3,FALSE)))," ",VLOOKUP(H68,'PY DATA'!$Q$3:$S$100,3,FALSE)) -> 
B69: 12:41:00 | C69: 59 | D69: 59.5 | E69: 825.86 | F69: 812 | G69: 825 | H69: 42 | I69: =IF(ISERROR((VLOOKUP(H69,'PY DATA'!$Q$3:$S$100,3,FALSE)))," ",VLOOKUP(H69,'PY DATA'!$Q$3:$S$100,3,FALSE)) -> 
B70: 12:42:00 | C70: 58 | D70: 58.5 | E70: 811.98 | F70: 799 | G70: 811 | H70: 43 | I70: =IF(ISERROR((VLOOKUP(H70,'PY DATA'!$Q$3:$S$100,3,FALSE)))," ",VLOOKUP(H70,'PY DATA'!$Q$3:$S$100,3,FALSE)) -> 
B71: 12:43:00 | C71: 57 | D71: 57.5 | E71: 798.1 | F71: 785 | G71: 798 | H71: 44 | I71: =IF(ISERROR((VLOOKUP(H71,'PY DATA'!$Q$3:$S$100,3,FALSE)))," ",VLOOKUP(H71,'PY DATA'!$Q$3:$S$100,3,FALSE)) -> 
B72: 12:44:00 | C72: 56 | D72: 56.5 | E72: 784.22 | F72: 771 | G72: 784 | H72: 45 | I72: =IF(ISERROR((VLOOKUP(H72,'PY DATA'!$Q$3:$S$100,3,FALSE)))," ",VLOOKUP(H72,'PY DATA'!$Q$3:$S$100,3,FALSE)) -> 
B73: 12:45:00 | C73: 55 | D73: 55.5 | E73: 770.34 | F73: 757 | G73: 770 | H73: 46 | I73: =IF(ISERROR((VLOOKUP(H73,'PY DATA'!$Q$3:$S$100,3,FALSE)))," ",VLOOKUP(H73,'PY DATA'!$Q$3:$S$100,3,FALSE)) -> 
B74: 12:46:00 | C74: 54 | D74: 54.5 | E74: 756.46 | F74: 743 | G74: 756 | H74: 47 | I74: =IF(ISERROR((VLOOKUP(H74,'PY DATA'!$Q$3:$S$100,3,FALSE)))," ",VLOOKUP(H74,'PY DATA'!$Q$3:$S$100,3,FALSE)) -> 
B75: 12:47:00 | C75: 53 | D75: 53.5 | E75: 742.58 | F75: 729 | G75: 742 | H75: 48 | I75: =IF(ISERROR((VLOOKUP(H75,'PY DATA'!$Q$3:$S$100,3,FALSE)))," ",VLOOKUP(H75,'PY DATA'!$Q$3:$S$100,3,FALSE)) -> 
B76: 12:48:00 | C76: 52 | D76: 52.5 | E76: 728.7 | F76: 715 | G76: 728 | H76: 49 | I76: =IF(ISERROR((VLOOKUP(H76,'PY DATA'!$Q$3:$S$100,3,FALSE)))," ",VLOOKUP(H76,'PY DATA'!$Q$3:$S$100,3,FALSE)) -> 
B77: 12:49:00 | C77: 51 | D77: 51.5 | E77: 714.82 | F77: 701 | G77: 714 | H77: 50 | I77: =IF(ISERROR((VLOOKUP(H77,'PY DATA'!$Q$3:$S$100,3,FALSE)))," ",VLOOKUP(H77,'PY DATA'!$Q$3:$S$100,3,FALSE)) -> 
B78: 12:50:00 | C78: 50 | D78: 50.5 | E78: 700.94 | F78: 688 | G78: 700 | H78: 51 | I78: =IF(ISERROR((VLOOKUP(H78,'PY DATA'!$Q$3:$S$100,3,FALSE)))," ",VLOOKUP(H78,'PY DATA'!$Q$3:$S$100,3,FALSE)) -> 
B79: 12:51:00 | C79: 49 | D79: 49.5 | E79: 687.06 | F79: 674 | G79: 687 | H79: 52 | I79: =IF(ISERROR((VLOOKUP(H79,'PY DATA'!$Q$3:$S$100,3,FALSE)))," ",VLOOKUP(H79,'PY DATA'!$Q$3:$S$100,3,FALSE)) -> 
B80: 12:52:00 | C80: 48 | D80: 48.5 | E80: 673.18 | F80: 660 | G80: 673 | H80: 53 | I80: =IF(ISERROR((VLOOKUP(H80,'PY DATA'!$Q$3:$S$100,3,FALSE)))," ",VLOOKUP(H80,'PY DATA'!$Q$3:$S$100,3,FALSE)) -> 
B81: 12:53:00 | C81: 47 | D81: 47.5 | E81: 659.3 | F81: 646 | G81: 659 | H81: 54 | I81: =IF(ISERROR((VLOOKUP(H81,'PY DATA'!$Q$3:$S$100,3,FALSE)))," ",VLOOKUP(H81,'PY DATA'!$Q$3:$S$100,3,FALSE)) -> 
B82: 12:54:00 | C82: 46 | D82: 46.5 | E82: 645.42 | F82: 632 | G82: 645 | H82: 55 | I82: =IF(ISERROR((VLOOKUP(H82,'PY DATA'!$Q$3:$S$100,3,FALSE)))," ",VLOOKUP(H82,'PY DATA'!$Q$3:$S$100,3,FALSE)) -> 
B83: 12:55:00 | C83: 45 | D83: 45.5 | E83: 631.54 | F83: 618 | G83: 631 | H83: 56 | I83: =IF(ISERROR((VLOOKUP(H83,'PY DATA'!$Q$3:$S$100,3,FALSE)))," ",VLOOKUP(H83,'PY DATA'!$Q$3:$S$100,3,FALSE)) -> 
B84: 12:56:00 | C84: 44 | D84: 44.5 | E84: 617.66 | F84: 0 | G84: 617 | H84: 57 | I84: =IF(ISERROR((VLOOKUP(H84,'PY DATA'!$Q$3:$S$100,3,FALSE)))," ",VLOOKUP(H84,'PY DATA'!$Q$3:$S$100,3,FALSE)) -> 
C87: upper PY = upper time * Ref PY / Race
C88: max PY = INT(upper PY)
C89: min PY = max PY of the next start time + 1

Sheet PY DATA
B2: PY | C2: GROUP | E2: Group | F2: Class Name | G2: PY | H2: Classes in Race | J2: GROUP | O2: GROUP CLASS | Q2: Group | S2: Group Classes
B3: =MIN($G$3:$G$97)-20 -> 896 | C3: =Race-INT(Race*B3/RefPY+0.5)+1 -> 36 | E3: =VLOOKUP(G3,$B$3:$C$1500,2,FALSE) -> 1 | F3: Gull | G3: 1388 | H3: =IF((G3<=RefPY), F3,"X") -> Gull | J3: =VLOOKUP(G3,$B$3:$C$1500,2,FALSE) -> 1 | K3: =J3&"-"&L3 -> 1-1 | L3: =IF(J3=J2,L2+1,1) -> 1 | M3: =COUNTIF($J$3:$J$97,J3) -> 1 | N3: =J3&"-"&M3 -> 1-1 | O3: =IF((J3=J2)*AND(O2<>"X"),O2&", "&H3,H3) -> Gull | Q3: 1 | R3: =VLOOKUP(Q3,$J$3:$N$97,5,FALSE) -> 1-1 | S3: =VLOOKUP(R3,$K$3:$O$97,5,FALSE) -> Gull
B4: =B3+1 -> 897 | C4: =Race-INT(Race*B4/RefPY+0.5)+1 -> 36 | E4: 3 | F4: Topper | G4: 1363 | H4: =IF((G4<=RefPY), F4,"X") -> Topper | J4: 3 | K4: =J4&"-"&L4 -> 3-1 | L4: =IF(J4=J3,L3+1,1) -> 1 | M4: =COUNTIF($J$3:$J$97,J4) -> 1 | N4: =J4&"-"&M4 -> 3-1 | O4: =IF((J4=J3)*AND(O3<>"X"),O3&", "&H4,H4) -> Topper | Q4: =Q3+1 -> 2 | R4: =VLOOKUP(Q4,$J$3:$N$97,5,FALSE) ->  | S4: =VLOOKUP(R4,$K$3:$O$97,5,FALSE) -> 
B5: =B4+1 -> 898 | C5: 36 | E5: 5 | F5: Pico | G5: 1330 | H5: Pico | J5: 5 | K5: 5-1 | L5: 1 | M5: =COUNTIF($J$3:$J$97,J5) -> 1 | N5: 5-1 | O5: Pico | Q5: =Q4+1 -> 3 | R5: 3-1 | S5: Topper
B6: 899 | C6: 36 | E6: 7 | F6: Quba S | G6: 1300 | H6: Quba S | J6: 7 | K6: 7-1 | L6: 1 | M6: 1 | N6: 7-1 | O6: Quba S | Q6: 4
B7: 900 | C7: 36 | E7: 9 | F7: Feva S | G7: 1282 | H7: Feva S | J7: 9 | K7: 9-1 | L7: 1 | M7: 1 | N7: 9-1 | O7: Feva S | Q7: 5 | R7: 5-1 | S7: Pico
B8: 901 | C8: 36 | E8: 10 | F8: Topaz Uno | G8: 1257 | H8: Topaz Uno | J8: 10 | K8: 10-1 | L8: 1 | M8: 1 | N8: 10-1 | O8: Topaz Uno | Q8: 6
B9: 902 | C9: 36 | E9: 14 | F9: 4.7 | G9: 1210 | H9: 4.7 | J9: 14 | K9: 14-1 | L9: 1 | M9: 1 | N9: 14-1 | O9: 4.7 | Q9: 7 | R9: 7-1 | S9: Quba S
B10: 903 | C10: 36 | E10: 15 | F10: Wanderer | G10: 1200 | H10: Wanderer | J10: 15 | K10: 15-1 | L10: 1 | M10: 3 | N10: 15-3 | O10: Wanderer | Q10: 8
B11: 904 | C11: 36 | E11: 15 | F11: Miracle | G11: 1196 | H11: Miracle | J11: 15 | K11: 15-2 | L11: 2 | M11: 3 | N11: 15-3 | O11: Wanderer, Miracle | Q11: 9 | R11: 9-1 | S11: Feva S
B12: 905 | C12: 36 | E12: 15 | F12: Lightning | G12: 1191 | H12: Lightning | J12: 15 | K12: 15-3 | L12: 3 | M12: 3 | N12: 15-3 | O12: Wanderer, Miracle, Lightning | Q12: 10 | R12: 10-1 | S12: Topaz Uno
B13: 906 | C13: 36 | E13: 17 | F13: Enterprise | G13: 1160 | H13: Enterprise | J13: 17 | K13: 17-1 | L13: 1 | M13: 2 | N13: 17-2 | O13: Enterprise | Q13: 11
B14: 907 | C14: 36 | E14: 17 | F14: Graduate (orig) | G14: 1159 | H14: Graduate (orig) | J14: 17 | K14: 17-2 | L14: 2 | M14: 2 | N14: 17-2 | O14: Enterprise, Graduate (orig) | Q14: 12
B15: 908 | C15: 36 | E15: 18 | F15: Radial | G15: 1154 | H15: Radial | J15: 18 | K15: 18-1 | L15: 1 | M15: 2 | N15: 18-2 | O15: Radial | Q15: 13
B16: 909 | C16: 36 | E16: 18 | F16: Europe | G16: 1153 | H16: Europe | J16: 18 | K16: 18-2 | L16: 2 | M16: 2 | N16: 18-2 | O16: Radial, Europe | Q16: 14 | R16: 14-1 | S16: 4.7
B17: 910 | C17: 35 | E17: 19 | F17: Vision | G17: 1138 | H17: Vision | J17: 19 | K17: 19-1 | L17: 1 | M17: 1 | N17: 19-1 | O17: Vision | Q17: 15 | R17: 15-3 | S17: Wanderer, Miracle, Lightning
B18: 911 | C18: 35 | E18: 20 | F18: Graduate (new) | G18: 1125 | H18: Graduate (new) | J18: 20 | K18: 20-1 | L18: 1 | M18: 2 | N18: 20-2 | O18: Graduate (new) | Q18: 16
B19: 912 | C19: 35 | E19: 20 | F19: Streaker | G19: 1124 | H19: Streaker | J19: 20 | K19: 20-2 | L19: 2 | M19: 2 | N19: 20-2 | O19: Graduate (new), Streaker | Q19: 17 | R19: 17-2 | S19: Enterprise, Graduate (orig)
B20: 913 | C20: 35 | E20: 21 | F20: Wayfarer | G20: 1116 | H20: Wayfarer | J20: 21 | K20: 21-1 | L20: 1 | M20: 2 | N20: 21-2 | O20: Wayfarer | Q20: 18 | R20: 18-2 | S20: Radial, Europe
B21: 914 | C21: 35 | E21: 21 | F21: Vareo | G21: 1108 | H21: Vareo | J21: 21 | K21: 21-2 | L21: 2 | M21: 2 | N21: 21-2 | O21: Wayfarer, Vareo | Q21: 19 | R21: 19-1 | S21: Vision
B22: 915 | C22: 35 | E22: 22 | F22: Laser | G22: 1099 | H22: Laser | J22: 22 | K22: 22-1 | L22: 1 | M22: 1 | N22: 22-1 | O22: Laser | Q22: 20 | R22: 20-2 | S22: =VLOOKUP(R22,$K$3:$O$97,5,FALSE) -> Graduate (new), Streaker
B23: 916 | C23: 35 | E23: 24 | F23: Vago XD | G23: 1072 | H23: Vago XD | J23: 24 | K23: 24-1 | L23: 1 | M23: 1 | N23: 24-1 | O23: Vago XD | Q23: 21 | R23: 21-2 | S23: Wayfarer, Vareo
B24: 917 | C24: 35 | E24: 25 | F24: Blaze Fire | G24: 1050 | H24: Blaze Fire | J24: 25 | K24: 25-1 | L24: 1 | M24: 1 | N24: 25-1 | O24: Blaze Fire | Q24: 22 | R24: 22-1 | S24: Laser
B25: 918 | C25: 35 | E25: 27 | F25: Blaze | G25: 1027 | H25: Blaze | J25: 27 | K25: 27-1 | L25: 1 | M25: 1 | N25: 27-1 | O25: Blaze | Q25: 23
B26: 919 | C26: 35 | E26: 31 | F26: Contender | G26: 966 | H26: Contender | J26: 31 | K26: 31-1 | L26: 1 | M26: 1 | N26: 31-1 | O26: Contender | Q26: 24 | R26: 24-1 | S26: Vago XD
B27: 920 | C27: 35 | E27: 32 | F27: 4000 | G27: 955 | H27: 4000 | J27: 32 | K27: 32-1 | L27: 1 | M27: 1 | N27: 32-1 | O27: 4000 | Q27: 25 | R27: 25-1 | S27: Blaze Fire
B28: 921 | C28: 35 | E28: 33 | F28: Osprey | G28: 950 | H28: Osprey | J28: 33 | K28: 33-1 | L28: 1 | M28: 2 | N28: 33-2 | O28: Osprey | Q28: 26
B29: 922 | C29: 35 | E29: 33 | F29: RS 400 | G29: 942 | H29: RS 400 | J29: 33 | K29: 33-2 | L29: 2 | M29: 2 | N29: 33-2 | O29: Osprey, RS 400 | Q29: 27 | R29: 27-1 | S29: Blaze
B30: 923 | C30: 35 | E30: 35 | F30: RS 600 | G30: 916 | H30: RS 600 | J30: 35 | K30: 35-1 | L30: 1 | M30: 1 | N30: 35-1 | O30: RS 600 | Q30: 28
B31: 924 | C31: 34 | H31: 0 | M31: 67 | Q31: 29
B32: 925 | C32: 34 | H32: 0 | M32: 67 | Q32: 30
B33: 926 | C33: 34 | H33: 0 | M33: 67 | Q33: 31 | R33: 31-1 | S33: Contender
B34: 927 | C34: 34 | H34: 0 | M34: 67 | Q34: 32 | R34: 32-1 | S34: 4000
B35: 928 | C35: 34 | E35: =VLOOKUP(G35,$B$3:$C$1500,2,FALSE) ->  | H35: 0 | J35: =VLOOKUP(G35,$B$3:$C$1500,2,FALSE) ->  | M35: 67 | Q35: 33 | R35: =VLOOKUP(Q35,$J$3:$N$97,5,FALSE) -> 33-2 | S35: Osprey, RS 400
B36: 929 | C36: 34 | H36: 0 | M36: 67 | Q36: 34
B37: 930 | C37: 34 | H37: 0 | M37: 67 | Q37: 35 | R37: 35-1 | S37: RS 600
B38: 931 | C38: 34 | H38: 0 | M38: 67 | Q38: 36 | S38: =VLOOKUP(R38,$K$3:$O$97,5,FALSE) -> 
B39: 932 | C39: 34 | H39: 0 | M39: 67 | Q39: 37
B40: 933 | C40: 34 | H40: 0 | M40: 67 | Q40: 38
B41: 934 | C41: 34 | H41: 0 | M41: 67 | Q41: 39
B42: 935 | C42: 34 | H42: 0 | M42: 67 | Q42: 40
B43: 936 | C43: 34 | H43: 0 | M43: 67 | Q43: =Q42+1 -> 41
B44: 937 | C44: 33 | H44: 0 | M44: 67 | Q44: 42
B45: 938 | C45: 33 | H45: 0 | M45: 67 | Q45: 43
B46: 939 | C46: 33 | H46: 0 | M46: 67 | Q46: 44
B47: 940 | C47: 33 | H47: 0 | M47: 67 | Q47: 45
B48: 941 | C48: 33 | H48: 0 | M48: 67 | Q48: 46
B49: 942 | C49: 33 | H49: 0 | M49: 67 | Q49: =Q48+1 -> 47
B50: 943 | C50: 33 | H50: 0 | M50: 67 | Q50: 48
B51: 944 | C51: 33 | H51: 0 | M51: 67 | Q51: 49
B52: 945 | C52: 33 | H52: 0 | M52: 67 | Q52: 50
B53: 946 | C53: 33 | H53: 0 | M53: 67 | Q53: 51
B54: 947 | C54: 33 | H54: 0 | M54: 67 | Q54: 52
B55: 948 | C55: 33 | H55: 0 | M55: 67 | Q55: 53
B56: 949 | C56: 33 | H56: 0 | M56: 67 | Q56: 54
B57: 950 | C57: 33 | H57: 0 | M57: 67 | Q57: 55
B58: 951 | C58: 32 | H58: 0 | M58: 67 | Q58: 56
B59: 952 | C59: 32 | H59: 0 | M59: 67 | Q59: 57
B60: 953 | C60: 32 | H60: 0 | M60: 67 | Q60: 58
B61: 954 | C61: 32 | H61: 0 | M61: 67 | Q61: 59
B62: 955 | C62: 32 | H62: 0 | M62: 67 | Q62: 60
B63: 956 | C63: 32 | H63: 0 | M63: 67 | Q63: 61
B64: 957 | C64: 32 | H64: 0 | M64: 67 | Q64: 62
B65: 958 | C65: 32 | H65: 0 | M65: 67 | Q65: 63
B66: 959 | C66: 32 | H66: 0 | M66: 67 | Q66: 64
B67: 960 | C67: 32 | E67: =VLOOKUP(G67,$B$3:$C$1500,2,FALSE) ->  | H67: 0 | J67: =VLOOKUP(G67,$B$3:$C$1500,2,FALSE) ->  | M67: 67 | Q67: 65
B68: 961 | C68: =Race-INT(Race*B68/RefPY+0.5)+1 -> 32 | H68: =IF((G68<=RefPY), F68,"X") -> 0 | K68: =J68&"-"&L68 ->  | L68: =IF(J68=J67,L67+1,1) ->  | M68: =COUNTIF($J$3:$J$97,J68) -> 67 | N68: =J68&"-"&M68 ->  | O68: =IF((J68=J67)*AND(O67<>"X"),O67&", "&H68,H68) ->  | Q68: 66 | R68: =VLOOKUP(Q68,$J$3:$N$97,5,FALSE) ->  | S68: =VLOOKUP(R68,$K$3:$O$97,5,FALSE) -> 
B69: =B68+1 -> 962 | C69: 32 | H69: 0 | M69: 67 | Q69: 67
B70: 963 | C70: 32 | H70: 0 | M70: 67 | Q70: 68
B71: 964 | C71: 32 | H71: 0 | M71: 67 | Q71: 69
B72: 965 | C72: 31 | H72: 0 | M72: 67 | Q72: 70
B73: 966 | C73: 31 | H73: 0 | M73: 67 | Q73: 71
B74: 967 | C74: 31 | H74: 0 | K74: =J74&"-"&L74 ->  | M74: 67 | Q74: 72
B75: 968 | C75: 31 | H75: 0 | M75: 67 | Q75: 73
B76: 969 | C76: 31 | H76: 0 | M76: 67 | Q76: 74
B77: 970 | C77: 31 | H77: 0 | M77: 67 | Q77: 75
B78: 971 | C78: 31 | H78: 0 | M78: 67 | Q78: 76
B79: 972 | C79: 31 | H79: 0 | M79: 67 | Q79: 77
B80: 973 | C80: 31 | H80: 0 | M80: 67 | Q80: 78
B81: 974 | C81: 31 | H81: 0 | M81: 67 | Q81: 79
B82: 975 | C82: 31 | H82: 0 | M82: 67 | Q82: 80
B83: 976 | C83: 31 | H83: 0 | K83: =J83&"-"&L83 ->  | L83: =IF(J83=J82,L82+1,1) ->  | M83: 67 | N83: =J83&"-"&M83 ->  | Q83: 81
B84: 977 | C84: 31 | H84: 0 | M84: 67 | Q84: 82
B85: 978 | C85: 31 | H85: 0 | M85: 67 | Q85: 83
B86: 979 | C86: 30 | H86: 0 | M86: 67 | Q86: 84
B87: 980 | C87: 30 | H87: 0 | M87: 67 | Q87: 85
B88: 981 | C88: 30 | H88: 0 | M88: 67 | Q88: 86
B89: 982 | C89: 30 | H89: 0 | M89: 67 | Q89: 87
B90: 983 | C90: 30 | H90: 0 | M90: 67 | Q90: 88
B91: 984 | C91: 30 | H91: 0 | M91: 67 | Q91: 89
B92: 985 | C92: 30 | H92: 0 | M92: 67 | Q92: 90
B93: 986 | C93: 30 | H93: 0 | M93: 67 | Q93: 91
B94: 987 | C94: 30 | H94: 0 | M94: 67 | Q94: 92
B95: 988 | C95: 30 | H95: 0 | M95: 67 | Q95: 93
B96: 989 | C96: 30 | H96: 0 | M96: 67 | Q96: 94
B97: 990 | C97: 30 | H97: 0 | M97: 67 | Q97: 95
B98: 991 | C98: 30 | Q98: 96
B99: 992 | C99: 30 | Q99: 97
B100: 993 | C100: 29 | Q100: 98
B101: 994 | C101: 29 | Q101: 99
B102: 995 | C102: 29 | Q102: 100
B103: 996 | C103: 29 | Q103: 101
B104: 997 | C104: 29 | Q104: 102
B105: 998 | C105: 29 | Q105: 103
B106: 999 | C106: 29 | Q106: 104
B107: 1000 | C107: 29 | Q107: 105
B108: 1001 | C108: 29 | Q108: 106
B109: 1002 | C109: 29 | Q109: 107
B110: 1003 | C110: 29 | Q110: 108
B111: 1004 | C111: 29 | Q111: 109
B112: 1005 | C112: 29 | Q112: 110
B113: 1006 | C113: 29 | Q113: =Q112+1 -> 111
B114: 1007 | C114: 28 | Q114: 112
B115: 1008 | C115: 28 | Q115: 113
B116: 1009 | C116: 28 | Q116: 114
B117: 1010 | C117: 28 | Q117: 115
B118: 1011 | C118: 28 | Q118: 116
B119: 1012 | C119: 28 | Q119: 117
B120: 1013 | C120: 28 | Q120: 118
B121: 1014 | C121: 28 | Q121: 119
B122: 1015 | C122: 28 | Q122: 120
B123: 1016 | C123: 28 | Q123: 121
B124: 1017 | C124: 28 | Q124: 122
B125: 1018 | C125: 28 | Q125: 123
B126: 1019 | C126: 28 | Q126: 124
B127: 1020 | C127: 28 | Q127: 125
B128: 1021 | C128: 27 | Q128: 126
B129: 1022 | C129: 27
B130: 1023 | C130: 27
B131: 1024 | C131: 27
B132: 1025 | C132: =Race-INT(Race*B132/RefPY+0.5)+1 -> 27 | S132: =VLOOKUP(R132,$K$3:$O$97,5,FALSE) -> 
B133: =B132+1 -> 1026 | C133: 27
B134: 1027 | C134: 27
B135: 1028 | C135: 27
B136: 1029 | C136: 27
B137: 1030 | C137: 27
B138: 1031 | C138: 27
B139: 1032 | C139: 27
B140: 1033 | C140: 27
B141: 1034 | C141: 27
B142: 1035 | C142: 26
B143: 1036 | C143: 26
B144: 1037 | C144: 26
B145: 1038 | C145: 26
B146: 1039 | C146: 26
B147: 1040 | C147: 26
B148: 1041 | C148: 26
B149: 1042 | C149: 26
B150: 1043 | C150: 26
B151: 1044 | C151: 26
B152: 1045 | C152: 26
B153: 1046 | C153: 26
B154: 1047 | C154: 26
B155: 1048 | C155: 25
B156: 1049 | C156: 25
B157: 1050 | C157: 25
B158: 1051 | C158: 25
B159: 1052 | C159: 25
B160: 1053 | C160: 25
B161: 1054 | C161: 25
B162: 1055 | C162: 25
B163: 1056 | C163: 25
B164: 1057 | C164: 25
B165: 1058 | C165: 25
B166: 1059 | C166: 25
B167: 1060 | C167: 25
B168: 1061 | C168: 25
B169: 1062 | C169: 24
B170: 1063 | C170: 24
B171: 1064 | C171: 24
B172: 1065 | C172: 24
B173: 1066 | C173: 24
B174: 1067 | C174: 24
B175: 1068 | C175: 24
B176: 1069 | C176: 24
B177: 1070 | C177: 24
B178: 1071 | C178: 24
B179: 1072 | C179: 24
B180: 1073 | C180: 24
B181: 1074 | C181: 24
B182: 1075 | C182: 24
B183: 1076 | C183: 23
B184: 1077 | C184: 23
B185: 1078 | C185: 23
B186: 1079 | C186: 23
B187: 1080 | C187: 23
B188: 1081 | C188: 23
B189: 1082 | C189: 23
B190: 1083 | C190: 23
B191: 1084 | C191: 23
B192: 1085 | C192: 23
B193: 1086 | C193: 23
B194: 1087 | C194: 23
B195: 1088 | C195: 23
B196: 1089 | C196: =Race-INT(Race*B196/RefPY+0.5)+1 -> 23 | S196: =VLOOKUP(R196,$K$3:$O$97,5,FALSE) -> 
B197: =B196+1 -> 1090 | C197: 22
B198: 1091 | C198: 22
B199: 1092 | C199: 22
B200: 1093 | C200: 22
B201: 1094 | C201: 22
... 1129 more rows

Sheet Changes
A2: 2013-10-01 | C2: Column C in sheet PY DATA. (Neil)
C3: The method used to determine the group numbers in Column C from the group numbers in column B was not valid at the extremes of the range.
C4: For a race of realistic settings this made no difference in practice.
C5: But a different formula is now used to calculate the group number from the PY number, which is correct for all PYs in the list.
A7: 2013-10-01 | C7: The Drop-down list for Slowest Class selection on the RACE SETUP page. Data Validation. (Neil)
C8: This used to be taken from an area off the right of the screen, linked to the PY list on the PY DATA sheet
C9: The drop-down list now references the PY DATA sheet directly by referring to a named range called PYlist (In Data - Data Validation)
C10: PYlist is a dynamic named range. That means that as boats are added to or deleted from the list, the range changes.
C11: This avoids having all the blank rows from lower down the list appearing in the drop-down list.
C12: Look in Formulas - Name Manager to see the definition of PYlist.
A14: 2013-10-01 | C14: PY DATA sheet. (Neil)
C15: Formula in column H amended to show an X if the class is slower than RefPY and hence not in the race.
C16: Formula in Column O amended so as to not append to cell above if the cell above contains an X
A18: 2013-10-01 | C18: RO ONLY sheet added (Janice)
A20: 2014-05-01 | C20: PYs updated for 2014 (Tudor PYs)
A22: 2015-09-01 | C22: PYs updated for 2015 (Tudor PYs)
A24: 2016-04-01 | C24: Change settings for the cell containing "Slowest Class competing" drop-down menu on RACE SETUP sheet. (Neil)
C25: (Because newer versions of Excel behave differently to old version)
C26: The cell is now not Locked. In DataValidation the "Ignore blank" option is now unticked.
A28: 2016-05-01 | C28: DISPLAY NOTICE (together with SIs) changed. (Neil)
C29: Group Numbers for starting are no longer used. Instead there is a START TIME OFFSET.
C30: RO ONLY sheet deleted (no longer needed)
C31: PYs updated for 2016 (Tudor PYs)
A33: 2017-05-01 | C33: PYs updated for 2017 (Tudor PYs)
A34: 2017-07-01 | C34: Some Tudor PYs updated/added
A35: 2018-03-01 | C35: PYs updated for 2018 (Tudor PYs)
A36: 2019-04-01 | C36: PYs updated for 2019 (Tudor PYs)
A37: 2022-04-01 | C37: PYs updated for 2022 (Tudor PYs)
A38: 2023-03-01 | C38: PYs updated for 2023 (Tudor PYs)
A39: 2023-05-01 | C39: Tudor PY for Vago XD changed from 1067 to 1068
A40: 2024-05-01 | C40: PYs updated for 2024 (Tudor PYs)
A41: 2025-03-01 | C41: PYs updated for 2025 (Tudor PYs)
